{"text_format":"1","workbook":"xlsx","n_sheets":3,"sheets":["Prospetto spese","Focus spese di personale","Foglio2"],"not_rendered":{"charts":0,"images":3,"macros":1,"external_links":0,"defined_names":0,"comments":0,"pivot_tables":0},"unopened":[],"bounds":{"document_bytes":16777216,"sheet_cells":100000,"rows_first":2000,"rows_last":500,"rows_between":2000,"halvings":0,"cell_chars":16384,"cell_head_chars":4096},"cells_cut":0,"cells_raw":0,"read":"whole","date_system":"1900"}

{"sheet":"Prospetto spese","index":0,"n_rows":36,"n_cols":7,"rows_kept":36,"cut":false,"hidden":false,"merged":[[33,1,34,5],[20,1,20,5],[16,1,19,1],[31,1,31,5],[1,1,3,6],[10,1,11,1],[13,1,14,1],[12,1,12,5],[15,1,15,5],[28,1,28,5],[29,2,29,5],[30,1,30,5],[21,1,22,1],[23,1,23,5],[24,1,25,1],[26,1,26,5]]}
[]
[null,"BANDO SI4.0 2021\nProspetto delle spese rendicontate"]
[]
[]
[]
[null,"Nome impresa","………………………………………………………………………………….."]
[null,"Codice fiscale impresa","………………………………………………………………………………….."]
[null,"Provincia della sede oggetto dell'intervento","………………………………………………………………………………….."]
[]
[null,"Spese previste","Descrizione spesa","N° e data fattura","Nome fornitore","Codice fiscale fornitore","Importo (al netto di Iva)"]
[null,"a) Consulenza erogata dal fornitore principale del servizio"]
[]
[null,"TOTALE a)",null,null,null,null,{"$f":"SUM(G11:G12)","v":0}]
[null,"b) Formazione erogata dal fornitore principale del servizio"]
[]
[null,"TOTALE b)",null,null,null,null,{"$f":"SUM(G14:G15)","v":0}]
[null,"c) Investimenti in attrezzature tecnologiche e programmi informatici necessari alla realizzazione del progetto"]
[]
[]
[]
[null,"TOTALE c)",null,null,null,null,{"$f":"SUM(G17:G20)","v":0}]
[null,"d) Servizi e tecnologie per l'ingegnerizzazione di software/hardware"]
[]
[null,"TOTALE d)",null,null,null,null,{"$f":"SUM(G22:G23)","v":0}]
[null,"e) Spese per la tutela della proprietà industriale"]
[]
[null,"TOTALE e)",null,null,null,null,{"$f":"SUM(G25:G26)","v":0}]
[null,"f) Spese del personale dell'azienda (vedi relativo focus)*",null,null,null,null,{"$f":"IF('Focus spese di personale'!K45=0,\"\",'Focus spese di personale'!K45)","v":""}]
[null,"TOTALE f)",null,null,null,null,{"$f":"IF(SUM(G28:G28)<=(0.3*(G13+G16+G21+G24+G27)),SUM(G28:G28),0.3*(G13+G16+G21+G24+G27))","v":0}]
[null,null,"TOTALE SPESE RENDICONTATE SOSTENUTE E AMMISSIBILI**",null,null,null,{"$f":"IF((G13+G16+G21+G24+G27+G29)<>0,IF(AND((G13+G16+G21+G24+G27+G29)>=40000,(G21+G24+G27)/(G13+G16+G21+G24+G27+G29)>=0.25),G13+G16+G21+G24+G27+G29,\"L'importo totale non raggiunge l'investimento minimo\"),\"L'importo totale non raggiunge l'investimento minimo\")","v":"L'importo totale non raggiunge l'investimento minimo"}]
[null,"INTENSITA' % DI CONTRIBUTO RICHIESTO",null,null,null,null,0.5]
[null,"CONTRIBUTO RICHIESTO",null,null,null,null,{"$f":"IF(G30<>\"L'importo totale non raggiunge l'investimento minimo\",IF((G30*0.5)<=50000,G30*0.5,50000),0)","v":0}]
[]
[null,"*  Nel campo \"Descrizione spesa\" inserire i nominativi delle persone coinvolte. Il dettaglio delle spese di personale dev'essere compilato all'interno del successivo foglio \"Focus spese di personale\", il totale viene copiato in automatico. Nel caso la cifra sia superiore al 30% delle altre voci di spesa, il totale f) ammissibile viene rimodulato dal sistema."]
[]
[null,"** Viene effettuato il controllo che le spese ammissibili raggiungano un investimento minimo di € 40.000 e che la somma delle voci di spesa c), d) ed e) sia almeno pari al 25% del totale ammissibile"]

{"sheet":"Focus spese di personale","index":1,"n_rows":45,"n_cols":13,"rows_kept":45,"cut":false,"hidden":false,"merged":[[1,1,3,10],[44,5,44,9],[7,12,20,20]]}
[]
[null,"BANDO SI4.0 2021 \nProspetto delle spese rendicontate"]
[]
[]
[]
[]
[null,"Dipendente (nome e cognome)","Descrizione dell'attività svolta nel progetto","Mese","Anno","Retribuzione mensile lorda (RML)","Retribuzione differita (DIF)","Oneri sociali (OS)","Giorni effettivamente lavorabili nel mese (giorlav)","Giorni dedicati al progetto","Costo totale del mese"]
[null,null,null,null,null,null,null,null,null,null,{"$f":"IF(Tabella1[[#This Row],[Giorni dedicati al progetto]]<=Tabella1[[#This Row],[Giorni effettivamente lavorabili nel mese (giorlav)]],IF(I8<>\"\",(F8+G8+H8)/I8*J8,\"\"),\"Errore giorni dedicati al progetto\")","v":""},null,"Istruzioni spese personale\nÈ ammesso il costo del personale dipendente solo se specificatamente dedicato al progetto. Il calcolo del costo giornaliero per ogni mese dedicato al progetto avviene tramite il metodo di calcolo del costo eleggibile: \n[(RML+DIF+OS) / giorlav]\nRML= retribuzione mensile lorda, comprensiva della parte degli oneri previdenziali e ritenute fiscali a carico del lavoratore; \nDIF= retribuzione differita (rateo TFR, 13ma, 14ma); OS= oneri sociali e fiscali a carico del Beneficiario non compresi in busta paga (ovvero non a carico del dipendente);\ngiorlav= giorni effettivamente lavorabili nel mese di riferimento (al lordo di ferie/malattie).\nNel presente modulo inserire il dettaglio relativo al personale dipendente impiegato compilando i campi richiesti per ciascun mese di progetto e ciascun dipendente impiegato. E' eventualmente possibile inserire nuove righe cliccando sul tasto qui di seguito."]
[null,null,null,null,null,null,null,null,null,null,{"$f":"IF(Tabella1[[#This Row],[Giorni dedicati al progetto]]<=Tabella1[[#This Row],[Giorni effettivamente lavorabili nel mese (giorlav)]],IF(I9<>\"\",(F9+G9+H9)/I9*J9,\"\"),\"Errore giorni dedicati al progetto\")","v":""}]
[null,null,null,null,null,null,null,null,null,null,{"$f":"IF(Tabella1[[#This Row],[Giorni dedicati al progetto]]<=Tabella1[[#This Row],[Giorni effettivamente lavorabili nel mese (giorlav)]],IF(I10<>\"\",(F10+G10+H10)/I10*J10,\"\"),\"Errore giorni dedicati al progetto\")","v":""}]
[null,null,null,null,null,null,null,null,null,null,{"$f":"IF(Tabella1[[#This Row],[Giorni dedicati al progetto]]<=Tabella1[[#This Row],[Giorni effettivamente lavorabili nel mese (giorlav)]],IF(I11<>\"\",(F11+G11+H11)/I11*J11,\"\"),\"Errore giorni dedicati al progetto\")","v":""}]
[null,null,null,null,null,null,null,null,null,null,{"$f":"IF(Tabella1[[#This Row],[Giorni dedicati al progetto]]<=Tabella1[[#This Row],[Giorni effettivamente lavorabili nel mese (giorlav)]],IF(I12<>\"\",(F12+G12+H12)/I12*J12,\"\"),\"Errore giorni dedicati al progetto\")","v":""}]
[null,null,null,null,null,null,null,null,null,null,{"$f":"IF(Tabella1[[#This Row],[Giorni dedicati al progetto]]<=Tabella1[[#This Row],[Giorni effettivamente lavorabili nel mese (giorlav)]],IF(I13<>\"\",(F13+G13+H13)/I13*J13,\"\"),\"Errore giorni dedicati al progetto\")","v":""}]
[null,null,null,null,null,null,null,null,null,null,{"$f":"IF(Tabella1[[#This Row],[Giorni dedicati al progetto]]<=Tabella1[[#This Row],[Giorni effettivamente lavorabili nel mese (giorlav)]],IF(I14<>\"\",(F14+G14+H14)/I14*J14,\"\"),\"Errore giorni dedicati al progetto\")","v":""}]
[null,null,null,null,null,null,null,null,null,null,{"$f":"IF(Tabella1[[#This Row],[Giorni dedicati al progetto]]<=Tabella1[[#This Row],[Giorni effettivamente lavorabili nel mese (giorlav)]],IF(I15<>\"\",(F15+G15+H15)/I15*J15,\"\"),\"Errore giorni dedicati al progetto\")","v":""}]
[null,null,null,null,null,null,null,null,null,null,{"$f":"IF(Tabella1[[#This Row],[Giorni dedicati al progetto]]<=Tabella1[[#This Row],[Giorni effettivamente lavorabili nel mese (giorlav)]],IF(I16<>\"\",(F16+G16+H16)/I16*J16,\"\"),\"Errore giorni dedicati al progetto\")","v":""}]
[null,null,null,null,null,null,null,null,null,null,{"$f":"IF(Tabella1[[#This Row],[Giorni dedicati al progetto]]<=Tabella1[[#This Row],[Giorni effettivamente lavorabili nel mese (giorlav)]],IF(I17<>\"\",(F17+G17+H17)/I17*J17,\"\"),\"Errore giorni dedicati al progetto\")","v":""}]
[null,null,null,null,null,null,null,null,null,null,{"$f":"IF(Tabella1[[#This Row],[Giorni dedicati al progetto]]<=Tabella1[[#This Row],[Giorni effettivamente lavorabili nel mese (giorlav)]],IF(I18<>\"\",(F18+G18+H18)/I18*J18,\"\"),\"Errore giorni dedicati al progetto\")","v":""}]
[null,null,null,null,null,null,null,null,null,null,{"$f":"IF(Tabella1[[#This Row],[Giorni dedicati al progetto]]<=Tabella1[[#This Row],[Giorni effettivamente lavorabili nel mese (giorlav)]],IF(I19<>\"\",(F19+G19+H19)/I19*J19,\"\"),\"Errore giorni dedicati al progetto\")","v":""}]
[null,null,null,null,null,null,null,null,null,null,{"$f":"IF(Tabella1[[#This Row],[Giorni dedicati al progetto]]<=Tabella1[[#This Row],[Giorni effettivamente lavorabili nel mese (giorlav)]],IF(I20<>\"\",(F20+G20+H20)/I20*J20,\"\"),\"Errore giorni dedicati al progetto\")","v":""}]
[null,null,null,null,null,null,null,null,null,null,{"$f":"IF(Tabella1[[#This Row],[Giorni dedicati al progetto]]<=Tabella1[[#This Row],[Giorni effettivamente lavorabili nel mese (giorlav)]],IF(I21<>\"\",(F21+G21+H21)/I21*J21,\"\"),\"Errore giorni dedicati al progetto\")","v":""}]
[null,null,null,null,null,null,null,null,null,null,{"$f":"IF(Tabella1[[#This Row],[Giorni dedicati al progetto]]<=Tabella1[[#This Row],[Giorni effettivamente lavorabili nel mese (giorlav)]],IF(I22<>\"\",(F22+G22+H22)/I22*J22,\"\"),\"Errore giorni dedicati al progetto\")","v":""}]
[null,null,null,null,null,null,null,null,null,null,{"$f":"IF(Tabella1[[#This Row],[Giorni dedicati al progetto]]<=Tabella1[[#This Row],[Giorni effettivamente lavorabili nel mese (giorlav)]],IF(I23<>\"\",(F23+G23+H23)/I23*J23,\"\"),\"Errore giorni dedicati al progetto\")","v":""}]
[null,null,null,null,null,null,null,null,null,null,{"$f":"IF(Tabella1[[#This Row],[Giorni dedicati al progetto]]<=Tabella1[[#This Row],[Giorni effettivamente lavorabili nel mese (giorlav)]],IF(I24<>\"\",(F24+G24+H24)/I24*J24,\"\"),\"Errore giorni dedicati al progetto\")","v":""}]
[null,null,null,null,null,null,null,null,null,null,{"$f":"IF(Tabella1[[#This Row],[Giorni dedicati al progetto]]<=Tabella1[[#This Row],[Giorni effettivamente lavorabili nel mese (giorlav)]],IF(I25<>\"\",(F25+G25+H25)/I25*J25,\"\"),\"Errore giorni dedicati al progetto\")","v":""}]
[null,null,null,null,null,null,null,null,null,null,{"$f":"IF(Tabella1[[#This Row],[Giorni dedicati al progetto]]<=Tabella1[[#This Row],[Giorni effettivamente lavorabili nel mese (giorlav)]],IF(I26<>\"\",(F26+G26+H26)/I26*J26,\"\"),\"Errore giorni dedicati al progetto\")","v":""}]
[null,null,null,null,null,null,null,null,null,null,{"$f":"IF(Tabella1[[#This Row],[Giorni dedicati al progetto]]<=Tabella1[[#This Row],[Giorni effettivamente lavorabili nel mese (giorlav)]],IF(I27<>\"\",(F27+G27+H27)/I27*J27,\"\"),\"Errore giorni dedicati al progetto\")","v":""}]
[null,null,null,null,null,null,null,null,null,null,{"$f":"IF(Tabella1[[#This Row],[Giorni dedicati al progetto]]<=Tabella1[[#This Row],[Giorni effettivamente lavorabili nel mese (giorlav)]],IF(I28<>\"\",(F28+G28+H28)/I28*J28,\"\"),\"Errore giorni dedicati al progetto\")","v":""}]
[null,null,null,null,null,null,null,null,null,null,{"$f":"IF(Tabella1[[#This Row],[Giorni dedicati al progetto]]<=Tabella1[[#This Row],[Giorni effettivamente lavorabili nel mese (giorlav)]],IF(I29<>\"\",(F29+G29+H29)/I29*J29,\"\"),\"Errore giorni dedicati al progetto\")","v":""}]
[null,null,null,null,null,null,null,null,null,null,{"$f":"IF(Tabella1[[#This Row],[Giorni dedicati al progetto]]<=Tabella1[[#This Row],[Giorni effettivamente lavorabili nel mese (giorlav)]],IF(I30<>\"\",(F30+G30+H30)/I30*J30,\"\"),\"Errore giorni dedicati al progetto\")","v":""}]
[null,null,null,null,null,null,null,null,null,null,{"$f":"IF(Tabella1[[#This Row],[Giorni dedicati al progetto]]<=Tabella1[[#This Row],[Giorni effettivamente lavorabili nel mese (giorlav)]],IF(I31<>\"\",(F31+G31+H31)/I31*J31,\"\"),\"Errore giorni dedicati al progetto\")","v":""}]
[null,null,null,null,null,null,null,null,null,null,{"$f":"IF(Tabella1[[#This Row],[Giorni dedicati al progetto]]<=Tabella1[[#This Row],[Giorni effettivamente lavorabili nel mese (giorlav)]],IF(I32<>\"\",(F32+G32+H32)/I32*J32,\"\"),\"Errore giorni dedicati al progetto\")","v":""}]
[null,null,null,null,null,null,null,null,null,null,{"$f":"IF(Tabella1[[#This Row],[Giorni dedicati al progetto]]<=Tabella1[[#This Row],[Giorni effettivamente lavorabili nel mese (giorlav)]],IF(I33<>\"\",(F33+G33+H33)/I33*J33,\"\"),\"Errore giorni dedicati al progetto\")","v":""}]
[null,null,null,null,null,null,null,null,null,null,{"$f":"IF(Tabella1[[#This Row],[Giorni dedicati al progetto]]<=Tabella1[[#This Row],[Giorni effettivamente lavorabili nel mese (giorlav)]],IF(I34<>\"\",(F34+G34+H34)/I34*J34,\"\"),\"Errore giorni dedicati al progetto\")","v":""}]
[null,null,null,null,null,null,null,null,null,null,{"$f":"IF(Tabella1[[#This Row],[Giorni dedicati al progetto]]<=Tabella1[[#This Row],[Giorni effettivamente lavorabili nel mese (giorlav)]],IF(I35<>\"\",(F35+G35+H35)/I35*J35,\"\"),\"Errore giorni dedicati al progetto\")","v":""}]
[null,null,null,null,null,null,null,null,null,null,{"$f":"IF(Tabella1[[#This Row],[Giorni dedicati al progetto]]<=Tabella1[[#This Row],[Giorni effettivamente lavorabili nel mese (giorlav)]],IF(I36<>\"\",(F36+G36+H36)/I36*J36,\"\"),\"Errore giorni dedicati al progetto\")","v":""}]
[null,null,null,null,null,null,null,null,null,null,{"$f":"IF(Tabella1[[#This Row],[Giorni dedicati al progetto]]<=Tabella1[[#This Row],[Giorni effettivamente lavorabili nel mese (giorlav)]],IF(I37<>\"\",(F37+G37+H37)/I37*J37,\"\"),\"Errore giorni dedicati al progetto\")","v":""}]
[null,null,null,null,null,null,null,null,null,null,{"$f":"IF(Tabella1[[#This Row],[Giorni dedicati al progetto]]<=Tabella1[[#This Row],[Giorni effettivamente lavorabili nel mese (giorlav)]],IF(I38<>\"\",(F38+G38+H38)/I38*J38,\"\"),\"Errore giorni dedicati al progetto\")","v":""}]
[null,null,null,null,null,null,null,null,null,null,{"$f":"IF(Tabella1[[#This Row],[Giorni dedicati al progetto]]<=Tabella1[[#This Row],[Giorni effettivamente lavorabili nel mese (giorlav)]],IF(I39<>\"\",(F39+G39+H39)/I39*J39,\"\"),\"Errore giorni dedicati al progetto\")","v":""}]
[null,null,null,null,null,null,null,null,null,null,{"$f":"IF(Tabella1[[#This Row],[Giorni dedicati al progetto]]<=Tabella1[[#This Row],[Giorni effettivamente lavorabili nel mese (giorlav)]],IF(I40<>\"\",(F40+G40+H40)/I40*J40,\"\"),\"Errore giorni dedicati al progetto\")","v":""}]
[null,null,null,null,null,null,null,null,null,null,{"$f":"IF(Tabella1[[#This Row],[Giorni dedicati al progetto]]<=Tabella1[[#This Row],[Giorni effettivamente lavorabili nel mese (giorlav)]],IF(I41<>\"\",(F41+G41+H41)/I41*J41,\"\"),\"Errore giorni dedicati al progetto\")","v":""}]
[null,null,null,null,null,null,null,null,null,null,{"$f":"IF(Tabella1[[#This Row],[Giorni dedicati al progetto]]<=Tabella1[[#This Row],[Giorni effettivamente lavorabili nel mese (giorlav)]],IF(I42<>\"\",(F42+G42+H42)/I42*J42,\"\"),\"Errore giorni dedicati al progetto\")","v":""}]
[null,null,null,null,null,null,null,null,null,null,{"$f":"IF(Tabella1[[#This Row],[Giorni dedicati al progetto]]<=Tabella1[[#This Row],[Giorni effettivamente lavorabili nel mese (giorlav)]],IF(I43<>\"\",(F43+G43+H43)/I43*J43,\"\"),\"Errore giorni dedicati al progetto\")","v":""}]
[null,null,null,null,null,null,null,null,null,null,{"$f":"IF(Tabella1[[#This Row],[Giorni dedicati al progetto]]<=Tabella1[[#This Row],[Giorni effettivamente lavorabili nel mese (giorlav)]],IF(I44<>\"\",(F44+G44+H44)/I44*J44,\"\"),\"Errore giorni dedicati al progetto\")","v":""}]
[null,null,null,null,null,"TOTALE (viene riportato automaticamente nel primo foglio)",null,null,null,null,{"$f":"SUM(K8:K44)","v":0}]

{"sheet":"Foglio2","index":2,"n_rows":13,"n_cols":4,"rows_kept":13,"cut":false,"hidden":true,"merged":[]}
[]
[null,"Gennaio",null,2021]
[null,"Febbraio",null,2022]
[null,"Marzo"]
[null,"Aprile"]
[null,"Maggio"]
[null,"Giugno"]
[null,"Luglio"]
[null,"Agosto"]
[null,"Settembre"]
[null,"Ottobre"]
[null,"Novembre"]
[null,"Dicembre"]